bitfinex/quotes_SOLUSD_20250310
["timestamp","ask_amount","ask_price","bid_price","bid_amount"]
[1741616394911,18.64964886,121.89,121.76,24.688452]
[1741616395203,195.38,121.92,121.76,32.901152]
[1741616395204,16.4,121.91,121.76,32.901152]
[1741616395383,6.4794209,121.91,121.77,0.14216157]
[1741616395580,258.5939359,121.92,121.82,50.4291359]
[1741616395784,195.38,121.92,121.88,0.063]
[1741616396017,50.4291359,121.89,121.88,0.063]
[1741616396182,8.2034,121.9,121.88,0.063]
[1741616396724,8.2034,121.9,121.76,24.692]
[1741616396725,0.14216157,121.85,121.76,24.692]
[1741616396882,7.6,121.85,121.75,8.35566157]
[1741616397086,69.7292,121.9,121.75,29.97880265]
[1741616397087,8.2034,121.9,121.75,29.97880265]
[1741616397293,28.712,121.9,121.76,0.28432314]
[1741616397499,18.64964886,121.89,121.76,0.14216157]
[1741616397726,0.14216157,121.85,121.73,8.35696157]
[1741616397925,18.64964886,121.8,121.68,8.2182]
[1741616398127,50.4291359,121.8,121.7,50.4291359]
[1741616398423,50.4291359,121.76,121.7,50.4291359]
[1741616398626,58.6395359,121.8,121.71,50.4291359]
[1741616398829,195.44,121.81,121.75,50.4291359]
[1741616399031,195.44,121.89,121.8,50.4291359]
[1741616399209,50.4291359,121.85,121.79,50.4291359]
[1741616399392,50.4291359,121.82,121.73,20.28432314]
[1741616399593,50.4291359,121.82,121.77,50.4291359]
[1741616399793,50.4291359,121.81,121.76,50.4291359]
[1741616400037,50.4291359,121.84,121.75,0.14216157]
[1741616400213,28.7166,121.88,121.76,8.2128]
[1741616400531,245.8691359,121.89,121.84,50.4291359]
[1741616400731,0.14216157,121.88,121.76,8.2128]
[1741616401051,203.6441,121.89,121.8,50.57129747]
[1741616401237,203.6441,121.89,121.77,0.14216157]
[1741616401401,50.4291359,121.81,121.72,0.28432314]
[1741616401602,50.4291359,121.79,121.72,0.14216157]
[1741616401908,50.4291359,121.79,121.68,28.7628]
[1741616402232,50.4291359,121.87,121.79,8.35296157]
[1741616402530,8.2007,121.94,121.82,20.0]
[1741616402702,50.4291359,121.9,121.84,50.4291359]
[1741616402903,8.198,121.98,121.89,50.4291359]
[1741616403111,220.216733,122.06,121.92,50.4291359]
[1741616403298,50.4291359,122.04,121.98,50.4291359]
[1741616403504,203.7228,122.06,121.99,50.4291359]
[1741616403708,245.9591359,122.06,122.01,50.4291359]
[1741616403896,0.03,122.06,122.02,50.4291359]
[1741616404101,0.03,122.06,121.99,0.14216157]
[1741616404322,0.03,122.06,122.05,50.4291359]
[1741616404533,0.03,122.06,122.0,8.1967]
[1741616404818,0.03,122.06,121.93,12.6106]
[1741616405020,0.03,122.06,121.95,0.28432314]
[1741616405223,0.17216157,122.06,121.94,8.2007]
[1741616405400,50.4291359,121.96,121.88,8.2047]
[1741616405600,0.14216157,122.02,121.84,28.7244]
[1741616405601,50.4291359,121.92,121.84,28.7244]
[1741616405819,7.6,121.98,121.89,0.14216157]
[1741616406121,195.5,122.01,121.92,50.4291359]
[1741616406324,8.1967,122.0,121.93,50.4291359]
[1741616406618,50.4291359,122.03,121.97,50.4291359]
[1741616406818,50.4291359,122.01,121.96,50.4291359]
[1741616407021,40.9699,122.13,121.99,50.4291359]
[1741616407323,8.2226,122.06,121.98,50.4291359]
[1741616407525,8.2226,122.06,121.96,0.14216157]
[1741616407526,0.03,122.06,122.01,50.4291359]
[1741616407727,0.03,122.06,122.05,50.4291359]
[1741616408029,0.03,122.13,122.05,50.71345904]
[1741616408215,0.2,122.11,122.09,50.4291359]
[1741616408523,0.2,122.11,122.1,50.4291359]
[1741616408726,0.2,122.11,122.07,50.4291359]
[1741616409043,0.2,122.11,122.09,0.14216157]
[1741616409223,0.2,122.11,122.1,50.4291359]
[1741616409416,0.2,122.11,122.1,50.57129747]
[1741616409625,0.2,122.11,122.1,0.14216157]
[1741616409814,0.2,122.11,122.1,50.71345904]
[1741616410012,0.03,122.13,122.12,70.57129747]
[1741616410245,0.03,122.13,122.12,20.0]
[1741616410445,0.03,122.13,122.08,8.1913]
[1741616410727,0.03,122.13,122.08,0.14216157]
[1741616410905,50.4291359,122.12,122.05,0.14216157]
[1741616411102,0.03,122.13,122.07,0.14216157]
[1741616411301,0.03,122.13,122.06,0.28432314]
[1741616411525,0.0001,122.13,122.07,1.2282188]
[1741616411737,0.0001,122.13,122.06,1.22742303]
[1741616411956,0.0001,122.13,122.02,28.6828]
[1741616412132,0.0001,122.13,122.11,50.4291359]
[1741616412345,0.0001,122.13,122.12,50.4291359]
[1741616412554,0.0001,122.13,122.12,50.57129747]
[1741616412848,0.063,122.16,122.15,20.0]
[1741616413057,0.063,122.16,122.15,70.57129747]
[1741616413221,0.03,122.19,122.16,0.14216157]
[1741616413422,0.03,122.19,122.13,20.0]
[1741616413639,0.063,122.27,122.18,50.57129747]
[1741616413855,0.063,122.27,122.24,50.4291359]
[1741616414148,0.063,122.27,122.25,50.4291359]
[1741616414520,0.063,122.27,122.16,111.8227359]
[1741616414742,0.063,122.27,122.2,20.14216157]
[1741616414950,0.063,122.27,122.25,50.4291359]
[1741616415129,0.063,122.27,122.26,50.4291359]
[1741616415324,0.063,122.27,122.25,20.0]
[1741616415524,0.063,122.27,122.19,7.74216157]
[1741616415722,50.4291359,122.26,122.19,7.6]
[1741616415930,50.4291359,122.22,122.17,8.1853]
[1741616416148,50.4291359,122.18,122.09,8.1906]
[1741616416350,0.28432314,122.22,122.07,13.2317]
[1741616416351,18.64964886,122.2,122.08,28.6688]
[1741616416641,0.14216157,122.19,122.08,8.1913]
[1741616416841,50.4291359,122.16,122.01,69.6663]
[1741616417020,50.4291359,122.09,122.01,28.6861]
[1741616417221,50.4291359,122.16,122.04,50.4291359]
[1741616417417,195.14,122.18,122.12,50.4291359]
[1741616417650,2.063,122.27,122.17,50.4291359]
[1741616417651,8.1806,122.24,122.17,50.4291359]
[1741616417943,8.1806,122.24,122.15,50.4291359]
[1741616418148,8.1806,122.24,122.13,20.0]
[1741616418320,50.4291359,122.21,122.16,50.4291359]
[1741616418522,50.4291359,122.18,122.13,50.4291359]
[1741616418720,0.14216157,122.19,122.05,8.1933]
[1741616418941,18.64964886,122.2,122.05,8.1933]
[1741616418942,18.64964886,122.17,122.05,28.6767]
[1741616419154,18.64964886,122.15,122.03,20.7579403]
[1741616419326,50.4291359,122.12,122.07,50.4291359]
[1741616419646,50.4291359,122.11,122.05,50.4291359]
[1741616419818,58.0291359,122.16,122.06,50.57129747]
[1741616420023,50.4291359,122.14,122.08,50.4291359]
[1741616420231,50.4291359,122.16,122.05,50.4291359]
[1741616420442,50.4291359,122.16,122.03,12.5638403]
[1741616420443,50.4291359,122.07,122.03,12.5638403]
[1741616420650,0.28432314,122.1,122.0,24.622635]
[1741616420949,0.14216157,122.13,122.05,50.4291359]
[1741616421166,0.14216157,122.13,122.0,53.311035]
[1741616421167,50.4291359,122.09,122.03,50.4291359]
[1741616421371,50.4291359,122.1,122.0,32.819235]
[1741616421660,26.39181043,122.09,122.0,24.622635]
[1741616421862,50.4291359,122.02,122.0,24.622635]
[1741616422031,50.4291359,122.01,122.0,24.622635]
[1741616422227,7.6,122.09,122.0,24.622635]
[1741616422457,12.4634,122.13,122.0,24.622635]
[1741616422458,8.1913,122.08,122.0,24.622635]
[1741616422744,18.79181043,122.06,122.0,24.622635]
[1741616422954,50.4291359,122.01,121.96,8.1749]
[1741616423254,18.79181043,122.06,121.96,8.1749]
[1741616423255,50.4291359,121.97,121.96,8.1749]
[1741616423629,0.14216157,122.03,121.96,8.1749]
[1741616423861,69.6263,122.08,122.0,50.4291359]
[1741616423862,15.7913,122.08,122.0,50.4291359]
[1741616424027,8.1906,122.1,121.99,20.0]
[1741616424238,213.91181043,122.12,121.99,20.0]
[1741616424239,195.12,122.12,122.06,50.4291359]
[1741616424533,7.74216157,122.11,121.97,8.1987]
[1741616424721,50.4291359,122.06,122.0,50.4291359]
[1741616424930,50.4291359,122.03,121.98,50.4291359]
[1741616425127,50.4291359,122.02,121.96,66.8032359]
[1741616425331,50.4291359,121.99,121.96,8.1749]
[1741616425529,50.57129747,121.97,121.96,8.1749]
[1741616425750,50.4291359,121.97,121.96,8.1749]
[1741616426166,50.4291359,121.97,121.82,8.2088]
[1741616426341,50.4291359,121.93,121.83,21.50092048]
[1741616426541,50.4291359,121.91,121.86,50.4291359]
[1741616426745,50.4291359,121.91,121.84,30.22629729]
[1741616426746,50.4291359,121.88,121.87,1.50042785]
[1741616427056,50.4291359,121.9,121.87,1.50042785]
[1741616427460,7.6,121.94,121.87,21.50042785]
[1741616427663,8.1978,121.99,121.9,50.4291359]
[1741616427847,7.6,122.01,121.88,0.28432314]
[1741616428159,50.4291359,122.0,121.88,20.28432314]
[1741616428361,50.4291359,121.98,121.94,20.0]
[1741616428547,36.2837,122.02,121.91,58.6318359]
[1741616428747,50.4291359,122.04,121.94,70.4291359]
[1741616428970,13.0419,122.07,121.95,0.28432314]
[1741616429262,1.49179802,122.06,122.02,50.4291359]
[1741616429436,1.49179802,122.06,121.98,0.14216157]
[1741616429643,1.49179802,122.06,122.02,50.4291359]
[1741616429859,1.49179802,122.06,121.94,50.0]
[1741616429860,50.4291359,122.05,121.92,1.37125345]
[1741616430062,0.28432314,122.04,121.93,50.4291359]
[1741616430366,7.6,122.03,121.89,0.28432314]
[1741616430573,50.4291359,121.98,121.93,50.4291359]
[1741616430873,15.794,122.04,121.97,20.0]
[1741616431115,50.4291359,122.03,121.92,50.71345904]
[1741616431244,1.49179802,122.06,121.98,0.28432314]
[1741616431552,1.49179802,122.06,122.03,0.28432314]
[1741616431754,1.49179802,122.06,122.05,50.4291359]
[1741616431963,1.49179802,122.06,122.02,20.0]
[1741616432168,1.49179802,122.06,121.98,20.0]
[1741616432169,51.92093392,122.06,121.98,20.0]
[1741616432336,50.4291359,122.03,121.98,20.0]
[1741616432542,50.4291359,122.05,122.0,50.4291359]
[1741616432763,9.68459802,122.06,121.97,20.0]
[1741616432961,1.49179802,122.06,121.99,50.4291359]
[1741616433169,1.49179802,122.06,122.0,50.4291359]
[1741616433367,1.49179802,122.06,121.97,20.0]
[1741616433551,50.4291359,122.0,121.95,50.4921359]
[1741616433751,50.4291359,122.0,121.95,0.063]
[1741616433970,50.4291359,121.97,121.95,0.063]
[1741616434140,7.6,122.03,121.95,0.063]
[1741616434345,30.16619802,122.06,122.0,50.4291359]
[1741616434346,9.68449802,122.06,122.0,50.4291359]
[1741616434670,50.4291359,122.04,121.98,50.4291359]
[1741616434889,50.4291359,122.04,121.96,28.6979]
[1741616434890,50.4291359,122.05,121.99,50.4291359]
[1741616435099,9.68479802,122.06,122.0,50.4291359]
[1741616435271,50.4291359,122.05,122.0,50.4291359]
[1741616435476,50.4291359,122.04,121.98,50.4291359]
[1741616435686,9.68469802,122.06,122.0,50.4291359]
[1741616435687,1.49179802,122.06,122.0,50.4291359]
[1741616435893,51.92093392,122.06,122.0,50.4291359]
[1741616436073,18.79181043,122.05,121.95,0.063]
[1741616436403,24.68,122.04,121.95,0.063]
[1741616436697,24.68,122.04,121.95,50.4921359]
[1741616436698,28.679,122.04,121.95,50.4921359]
[1741616437003,50.4291359,122.02,121.96,50.4291359]
[1741616437210,8.1921,122.07,122.0,50.4291359]
[1741616437371,18.64964886,122.08,121.95,0.063]
[1741616437564,50.4291359,122.03,121.97,50.4291359]
[1741616437764,50.4291359,122.03,122.0,20.0]
[1741616437980,1.49179802,122.08,122.02,50.4291359]
[1741616438266,50.4291359,122.05,121.97,0.14216157]
[1741616438482,9.68329802,122.08,121.98,79.1222359]
[1741616438690,50.4291359,122.06,122.0,50.4291359]
[1741616438889,50.4291359,122.05,122.0,50.4291359]
[1741616439187,9.68309802,122.08,122.01,20.0]
[1741616439389,9.68309802,122.08,121.98,8.198]
[1741616439574,50.4291359,122.01,121.95,0.063]
[1741616439892,50.4291359,121.97,121.95,0.063]
[1741616440071,69.3631079,122.04,121.95,0.063]
[1741616440265,50.4291359,121.97,121.95,0.063]
[1741616440467,20.4894,122.02,121.95,0.063]
[1741616440777,15.7953,122.02,121.95,0.063]
[1741616440980,50.4291359,121.99,121.94,49.9921359]
[1741616441188,8.1953,122.02,121.93,50.4291359]
[1741616441399,50.4291359,121.94,121.89,8.2041]
[1741616441562,50.4291359,121.93,121.87,50.4291359]
[1741616441761,50.4291359,121.94,121.88,50.4291359]
[1741616441964,18.64964886,121.98,121.84,0.14216157]
[1741616441965,50.4291359,121.93,121.87,50.4291359]
[1741616442180,50.4291359,121.94,121.88,50.4291359]
[1741616442389,7.6,121.99,121.9,20.0]
[1741616442390,15.7978,121.99,121.9,20.0]
[1741616442591,8.196,122.01,121.92,50.4291359]
[1741616442894,0.14216157,122.03,121.87,70.97639282]
[1741616443190,0.14216157,121.97,121.87,28.719]
[1741616443373,7.6,122.01,121.88,0.14216157]
[1741616443572,7.6,122.03,121.91,0.14216157]
[1741616443879,18.79181043,122.03,121.95,50.4291359]
[1741616444080,50.4291359,122.02,121.96,50.4291359]
[1741616444292,50.4291359,122.03,121.97,50.4291359]
[1741616444486,1.49179802,122.03,121.99,50.4291359]
[1741616444881,51.92093392,122.03,121.98,50.4291359]
[1741616445075,50.4291359,122.0,121.95,50.4291359]
[1741616445383,50.4291359,121.99,121.94,8.2007]
[1741616445689,18.64964886,121.99,121.9,8.2664]
[1741616445890,195.3,122.02,121.93,20.0]
[1741616446112,1.49179802,122.03,121.94,0.14216157]
[1741616446277,1.49179802,122.03,121.93,20.0]
[1741616446480,1.49179802,122.03,121.94,28.7025]
[1741616446691,9.68649802,122.03,121.94,8.2007]
[1741616446887,1.49179802,122.03,121.94,8.2007]
[1741616447089,51.92093392,122.03,121.97,70.4291359]
[1741616447404,50.4291359,122.02,121.97,20.0]
[1741616447579,1.49179802,122.03,122.0,50.4291359]
[1741616447779,1.49179802,122.03,121.97,20.0]
[1741616447989,50.4291359,122.02,121.97,20.0]
[1741616448191,50.4291359,122.01,121.95,50.4291359]
[1741616448679,50.4291359,121.99,121.94,50.4291359]
[1741616448873,50.4291359,122.01,121.95,50.4291359]
[1741616449105,1.49179802,122.03,121.97,50.4291359]
[1741616449277,50.4291359,122.01,121.96,50.4291359]
[1741616449581,9.68649802,122.03,121.92,28.7072]
[1741616449787,50.4291359,122.0,121.95,20.0]
[1741616449986,30.17319802,122.03,121.92,28.7072]
[1741616450178,50.4291359,121.99,121.93,50.4291359]
[1741616450380,50.4291359,121.98,121.93,50.4291359]
[1741616450593,50.4291359,121.98,121.94,8.2007]
[1741616450819,8.196,122.01,121.94,8.2007]
[1741616451109,1.49179802,122.03,121.97,50.4291359]
[1741616451417,1.49179802,122.03,121.94,8.2007]
[1741616451715,50.4291359,121.98,121.94,8.2007]
[1741616451880,9.68649802,122.03,121.94,8.2007]
[1741616452088,50.4291359,121.99,121.94,8.2007]
[1741616452285,50.4291359,121.97,121.92,58.6309359]
[1741616452492,50.4291359,121.93,121.9,0.063]
[1741616452699,18.64964886,121.97,121.9,0.063]
[1741616452700,50.4291359,121.91,121.9,0.063]
[1741616453198,69.22094633,121.91,121.9,0.063]
[1741616453508,69.3631079,121.91,121.9,0.063]
[1741616453709,26.533972,121.9,121.82,0.063]
[1741616453890,50.4291359,121.83,121.82,0.063]
[1741616454591,50.4291359,121.84,121.82,0.063]
[1741616454794,50.4291359,121.83,121.82,0.063]
[1741616455509,0.14216157,121.81,121.69,28.7603]
[1741616455809,50.4291359,121.72,121.68,8.2811]
[1741616455999,0.14216157,121.77,121.68,8.2811]
[1741616456202,50.4291359,121.71,121.68,8.2811]
[1741616456512,7.6,121.76,121.69,50.4291359]
[1741616456808,50.4291359,121.7,121.68,0.063]
[1741616457008,0.14216157,121.71,121.68,0.063]
[1741616457211,100.8582718,121.69,121.68,0.063]
[1741616457386,50.4291359,121.69,121.68,0.063]
[1741616457792,119.65008223,121.69,121.68,0.063]
[1741616457994,50.4291359,121.69,121.68,0.063]
[1741616458209,7.74216157,121.73,121.68,0.063]
[1741616458210,50.4291359,121.71,121.68,0.063]
[1741616458385,50.4291359,121.7,121.68,0.063]
[1741616458585,50.4291359,121.71,121.68,0.063]
[1741616458907,50.4291359,121.72,121.68,0.063]
[1741616459111,18.79181043,121.77,121.68,0.063]
[1741616459112,50.4291359,121.69,121.68,0.063]
[1741616459313,50.57129747,121.69,121.68,0.063]
[1741616459510,69.3631079,121.69,121.65,0.063]
[1741616459709,0.14216157,121.67,121.6,7.7866]
[1741616460111,76.67878476,121.68,121.6,7.7866]
[1741616460312,50.4291359,121.62,121.6,7.7866]
[1741616460488,50.4291359,121.62,121.56,8.2263]
[1741616460689,8.2161,121.72,121.6,0.14216157]
[1741616460892,50.4291359,121.65,121.6,50.4291359]
[1741616461089,0.28432314,121.67,121.56,8.2263]
[1741616461393,50.4291359,121.57,121.54,8.2277]
[1741616461590,50.4291359,121.57,121.5,20.575]
[1741616461591,50.4291359,121.55,121.46,20.5813]
[1741616461891,50.4291359,121.5,121.44,8.2345]
[1741616464793,7.6,121.55,121.42,20.5889]
[1741616464998,7.6,121.54,121.4,8.2372]
[1741616465205,50.4291359,121.43,121.4,8.2372]
[1741616465400,0.14216157,121.5,121.41,50.4291359]
[1741616465629,0.14216157,121.52,121.43,50.4291359]
[1741616465927,50.4291359,121.53,121.48,50.4291359]
[1741616466126,50.4291359,121.5,121.41,0.14216157]
[1741616466331,26.24964886,121.54,121.45,50.4291359]
[1741616466533,50.4291359,121.51,121.44,0.14216157]
[1741616466738,195.6,121.58,121.48,20.0]
[1741616466903,50.4291359,121.53,121.45,69.9876]
[1741616467196,7.74216157,121.57,121.45,69.9876]
[1741616467197,50.4291359,121.54,121.45,69.9876]
[1741616467402,50.4291359,121.54,121.48,70.4291359]
[1741616467604,50.4291359,121.54,121.49,50.4291359]
[1741616467803,50.4291359,121.56,121.48,20.0]
[1741616468104,50.4291359,121.62,121.48,20.0]
[1741616468105,7.6,121.65,121.49,0.28432314]
[1741616468429,50.4291359,121.63,121.57,50.4291359]
[1741616468674,195.9,121.66,121.59,8.2243]
[1741616468800,50.4291359,121.6,121.52,41.1434]
[1741616469007,50.4291359,121.54,121.5,28.8065]
[1741616469201,50.4291359,121.56,121.5,58.6595359]
[1741616469409,50.4291359,121.58,121.5,8.2304]
[1741616469613,7.6,121.67,121.57,50.4291359]
[1741616469824,0.14216157,121.66,121.53,20.0]
[1741616470005,50.4291359,121.58,121.56,0.03]
[1741616470196,50.4291359,121.59,121.56,0.03]
[1741616470406,7.6,121.63,121.56,0.03]
[1741616470610,0.063,121.66,121.56,28.8222]
[1741616470930,50.4291359,121.65,121.56,28.8222]
[1741616471225,7.6,121.64,121.56,0.03]
[1741616471427,26.533972,121.63,121.56,0.03]
[1741616471725,50.4291359,121.57,121.56,0.03]
[1741616471905,58.0291359,121.62,121.56,0.03]
[1741616472106,50.4291359,121.62,121.56,0.03]
[1741616472326,18.79181043,121.61,121.56,0.03]
[1741616472539,50.4291359,121.57,121.56,0.03]
[1741616473033,18.933972,121.56,121.46,8.2331]
[1741616473332,69.4942359,121.62,121.49,20.0]
[1741616473333,195.94,121.55,121.49,20.0]
[1741616473510,50.4291359,121.52,121.46,28.816]
[1741616473719,195.94,121.55,121.46,28.816]
[1741616473928,50.4291359,121.52,121.46,58.6622359]
[1741616474131,195.94,121.55,121.49,20.0]
[1741616474530,50.4291359,121.54,121.49,20.0]
[1741616474818,195.94,121.55,121.49,50.4291359]
[1741616475144,195.94,121.55,121.5,50.4291359]
[1741616475353,7.6,121.59,121.49,20.0]
[1741616475538,195.94,121.63,121.49,20.0]
[1741616475539,0.14216157,121.62,121.49,20.0]
[1741616475738,204.1618,121.63,121.5,0.14216157]
[1741616476117,195.94,121.63,121.5,0.28432314]
[1741616476415,195.94,121.63,121.59,20.0]
[1741616476618,50.4291359,121.64,121.56,20.565]
[1741616476817,8.2828,121.66,121.54,0.14216157]
[1741616477017,0.063,121.66,121.59,50.4291359]
[1741616477224,0.063,121.66,121.57,0.28432314]
[1741616478239,0.063,121.66,121.65,50.4291359]
[1741616478442,195.98,121.75,121.65,50.4291359]
[1741616478630,50.4291359,121.77,121.72,50.4291359]
[1741616478832,50.4291359,121.78,121.72,50.4291359]
[1741616479159,7.6,121.78,121.64,69.8781]
[1741616479332,7.6,121.77,121.69,20.0]
[1741616479530,50.4291359,121.75,121.69,20.0]
[1741616479728,0.063,121.79,121.67,20.0]
[1741616479729,50.4291359,121.72,121.67,20.0]
[1741616479938,18.79181043,121.77,121.67,70.4291359]
[1741616480117,50.4291359,121.74,121.69,50.4291359]
[1741616480726,18.79181043,121.77,121.67,70.4291359]
[1741616480929,50.4291359,121.78,121.72,50.4291359]
[1741616481163,0.063,121.79,121.69,0.14216157]
[1741616481164,0.063,121.79,121.71,20.0]
[1741616481368,0.063,121.79,121.75,50.4291359]
[1741616481657,0.063,121.79,121.71,20.0]
[1741616481962,0.063,121.79,121.74,50.4291359]
[1741616482136,0.063,121.79,121.76,50.4291359]
[1741616482342,0.063,121.79,121.78,50.4291359]
[1741616482834,0.063,121.79,121.77,50.4291359]
[1741616483154,0.063,121.79,121.78,50.4291359]
[1741616483363,0.0001,121.79,121.78,50.57129747]
[1741616483689,8.1987,121.97,121.84,0.14216157]
[1741616483862,0.063,121.9,121.83,20.0]
[1741616484067,0.063,121.9,121.86,50.4291359]
[1741616484539,0.063,121.9,121.89,20.0]
[1741616484740,50.4921359,121.9,121.83,28.7272]
[1741616484962,0.063,121.9,121.83,8.2081]
[1741616485140,18.996972,121.9,121.81,8.2095]
[1741616485322,50.4291359,121.86,121.81,58.6386359]
[1741616485660,50.4291359,121.86,121.79,20.5265]
[1741616485661,50.4291359,121.83,121.76,28.7438]
[1741616486177,50.4291359,121.86,121.76,8.2128]
[1741616486178,0.14216157,121.85,121.76,8.2128]
[1741616486457,50.4291359,121.84,121.76,28.7449]
[1741616486759,50.4291359,121.81,121.75,50.4291359]
[1741616486939,50.4291359,121.79,121.75,8.2135]
[1741616487141,20.5111,121.89,121.78,50.4291359]
[1741616487330,20.5111,121.89,121.76,0.14216157]
[1741616487331,50.4291359,121.88,121.83,50.4291359]
[1741616487555,188.87069243,121.91,121.82,50.4291359]
[1741616487771,50.4291359,121.89,121.84,50.4291359]
[1741616487974,239.29982833,121.91,121.86,50.4291359]
[1741616488180,8.1981,121.98,121.87,0.14216157]
[1741616488345,50.4291359,121.96,121.9,50.4291359]
[1741616488691,50.4291359,121.96,121.89,20.0]
[1741616488878,50.4291359,121.93,121.87,50.4291359]
[1741616489045,50.4291359,121.94,121.89,50.4291359]
[1741616489252,50.4291359,121.95,121.89,50.4291359]
[1741616489559,0.14216157,121.97,121.84,20.0]
[1741616489753,50.4291359,121.91,121.86,50.4291359]
[1741616489958,50.4291359,121.9,121.85,50.4291359]
[1741616490159,7.6,121.96,121.86,50.4291359]
[1741616490459,50.4291359,121.91,121.85,50.4291359]
[1741616490782,50.4291359,121.94,121.89,8.2041]
[1741616490954,50.4291359,121.98,121.82,18.933972]
[1741616490955,50.4291359,121.91,121.86,20.0]
[1741616491155,50.4291359,121.91,121.83,8.2081]
[1741616491477,50.4291359,121.91,121.8,8.2101]
[1741616491478,50.4291359,121.86,121.8,8.2101]
[1741616491690,50.4291359,121.92,121.84,50.4291359]
[1741616491871,50.4291359,121.87,121.8,8.2101]
[1741616492169,0.14216157,121.9,121.79,8.2106]
[1741616492371,50.4291359,121.92,121.84,50.4291359]
[1741616492585,50.4291359,121.9,121.84,50.4291359]
[1741616492784,50.4291359,121.9,121.79,47.38734886]
[1741616492785,26.85234886,121.91,121.79,28.7377]
[1741616493086,50.4291359,121.84,121.75,8.2135]
[1741616493258,50.4291359,121.83,121.78,50.4291359]
[1741616493452,50.4291359,121.82,121.75,8.2135]
[1741616493652,50.4291359,121.78,121.73,20.8779]
[1741616493886,26.24964886,121.85,121.73,20.8779]
[1741616494074,50.4291359,121.81,121.75,50.4291359]
[1741616494279,50.4291359,121.8,121.73,41.4151]
[1741616494585,50.4291359,121.79,121.74,50.4291359]
[1741616494883,26.24964886,121.85,121.75,8.2135]
[1741616495086,195.6,121.88,121.75,28.7473]
[1741616495387,50.4291359,121.85,121.79,50.4291359]
[1741616495589,195.6,121.88,121.81,50.4291359]
[1741616495791,50.4291359,121.92,121.76,18.933972]
[1741616495792,50.4291359,121.89,121.79,20.0]
[1741616495963,7.88432314,121.91,121.81,50.4291359]
[1741616496280,7.6,121.9,121.76,0.14216157]
[1741616496482,50.4291359,121.86,121.79,20.0]
[1741616496689,50.4291359,121.84,121.79,70.4291359]
[1741616496984,50.4291359,121.81,121.77,8.2122]
[1741616497187,50.4291359,121.81,121.76,50.4291359]
[1741616497188,50.4291359,121.79,121.76,8.2128]
[1741616497384,50.4291359,121.78,121.71,6.4806]
[1741616497593,50.4291359,121.77,121.72,58.6446359]
[1741616497884,50.4291359,121.76,121.72,8.2155]
[1741616498091,50.4291359,121.8,121.7,50.4921359]
[1741616498092,50.4291359,121.74,121.7,8.2796]
[1741616498281,50.4291359,121.73,121.7,0.063]
[1741616498586,50.4291359,121.71,121.7,0.063]
[1741616498891,50.4291359,121.72,121.7,0.063]
[1741616499189,50.4291359,121.74,121.7,0.063]
[1741616499364,50.4291359,121.76,121.7,0.063]
[1741616499567,50.4291359,121.8,121.7,0.063]
[1741616499780,197.58,121.85,121.72,20.0]
[1741616499781,7.6,121.85,121.72,20.0]
[1741616499955,50.4291359,121.86,121.78,50.4291359]
[1741616500155,195.64,121.88,121.81,50.4291359]
[1741616500360,203.8449,121.88,121.73,0.28432314]
[1741616500690,195.64,121.88,121.76,20.0]
[1741616500857,195.64,121.88,121.77,28.7427]
[1741616501199,50.4291359,121.86,121.81,50.4291359]
[1741616501489,50.4291359,121.86,121.77,28.7427]
[1741616501490,50.4291359,121.82,121.77,79.1718359]
[1741616501668,50.4291359,121.82,121.72,12.9076]
[1741616501669,50.4291359,121.81,121.73,8.2149]
[1741616501860,50.4291359,121.77,121.73,8.2149]
[1741616502060,50.4291359,121.86,121.73,28.7521]
[1741616502373,50.4291359,121.78,121.73,79.1812359]
[1741616502580,50.4291359,121.78,121.73,8.2149]
[1741616502777,18.64964886,121.82,121.73,8.2149]
[1741616502961,18.933972,121.84,121.73,28.7521]
[1741616503172,50.4291359,121.76,121.72,8.2154]
[1741616503371,50.4291359,121.74,121.71,8.2162]
[1741616503887,50.4291359,121.77,121.72,50.4291359]
[1741616504087,7.6,121.83,121.71,28.7568]
[1741616504088,50.4291359,121.78,121.71,28.7568]
[1741616504270,50.4291359,121.81,121.76,50.4291359]